bitfinex/quotes_ETHUSD_20241204
["timestamp","ask_amount","ask_price","bid_price","bid_amount"]
[1733334400556,9.83817869,3798.1,3796.4,0.53156355]
[1733334400557,9.83817869,3798.0,3796.8,2.63379]
[1733334400783,9.83817869,3798.0,3796.4,0.53156355]
[1733334400984,9.83817869,3797.6,3796.3,2.63408]
[1733334401187,9.83817869,3797.6,3797.0,2.63364]
[1733334401392,9.83817869,3797.6,3796.0,0.4992]
[1733334401597,0.98381787,3797.5,3796.0,0.4992]
[1733334401797,0.98381787,3797.5,3796.8,2.63377]
[1733334401798,9.21299656,3797.5,3796.8,2.63377]
[1733334401953,8.22917869,3797.3,3796.0,0.4992]
[1733334402161,8.22917869,3797.3,3796.8,2.63373]
[1733334402482,8.22917869,3797.3,3796.9,2.63366]
[1733334402656,8.22917869,3797.3,3796.9,2.6337]
[1733334402857,8.22917869,3797.3,3796.8,2.63377]
[1733334403069,9.01831994,3797.3,3796.8,2.63377]
[1733334403299,8.22917869,3797.2,3796.0,3.13352]
[1733334403501,1.612,3796.9,3796.0,3.13352]
[1733334403709,8.22917869,3796.7,3796.0,0.4992]
[1733334404008,8.22917869,3796.5,3796.0,0.4992]
[1733334404507,8.22917869,3796.2,3796.0,0.4992]
[1733334404806,8.22917869,3796.3,3796.0,0.4992]
[1733334405178,8.22917869,3796.1,3796.0,0.4992]
[1733334405364,9.84117869,3796.1,3796.0,0.4992]
[1733334405703,8.22917869,3795.7,3795.0,0.00249082]
[1733334405857,1.5142,3795.6,3795.0,0.00249082]
[1733334406058,9.74337869,3795.6,3795.0,0.00249082]
[1733334406261,1.18411787,3796.1,3795.0,0.00249082]
[1733334406262,8.22917869,3795.5,3795.0,0.00249082]
[1733334406490,8.22917869,3795.1,3795.0,0.00249082]
[1733334406694,10.71771656,3795.1,3795.0,0.00249082]
[1733334407173,9.78807869,3794.9,3793.0,0.51726044]
[1733334407411,1.5589,3794.8,3793.0,0.51726044]
[1733334407576,8.22917869,3794.7,3793.7,2.63592]
[1733334407778,8.22917869,3794.4,3792.7,2.63664]
[1733334408021,1.5589,3794.6,3792.9,2.6365]
[1733334408022,8.22917869,3794.2,3792.9,2.6365]
[1733334408320,0.97433787,3795.1,3794.7,2.63524]
[1733334408321,8.22917869,3794.8,3794.7,2.63524]
[1733334408670,0.51674519,3795.4,3793.8,2.63584]
[1733334408671,8.74592388,3795.4,3793.9,2.63581]
[1733334409019,4.8889,3795.5,3794.4,1.5642]
[1733334409229,3.33,3795.4,3795.3,2.63476]
[1733334410620,0.07322,3795.5,3795.3,2.898236]
[1733334411299,0.07322,3795.5,3795.3,2.63476]
[1733334411473,0.07322,3795.5,3795.4,2.63476]
[1733334411668,3.40322,3795.5,3795.4,2.63476]
[1733334413337,3.33,3796.7,3796.6,2.63393]
[1733334413613,3.33,3796.7,3796.6,2.897323]
[1733334413917,3.33,3796.7,3796.6,2.63393]
[1733334414234,6.66,3796.7,3796.6,2.63393]
[1733334414621,6.66,3796.7,3796.6,3.18393]
[1733334414792,4.02614,3796.7,3796.6,3.18393]
[1733334414986,2.70921,3796.7,3796.6,3.18393]
[1733334415233,2.70921,3796.7,3796.6,3.380493]
[1733334415536,2.70921,3796.7,3796.4,2.63407]
[1733334415828,4.25971,3796.7,3796.5,2.63396]
[1733334416028,4.25971,3796.7,3795.4,1.6476]
[1733334416190,2.70921,3796.7,3796.6,2.63393]
[1733334416621,6.03921,3796.7,3796.6,2.63393]
[1733334417636,0.77149,3796.7,3796.6,5.252736]
[1733334417791,3.33,3797.6,3797.5,2.63331]
[1733334418439,3.33,3797.6,3797.5,3.18331]
[1733334418927,3.33,3797.6,3797.5,2.63331]
[1733334419116,6.66,3797.6,3797.5,3.709988]
[1733334419315,6.66,3797.6,3797.5,2.63331]
[1733334419546,6.66,3797.6,3797.0,3.0]
[1733334419691,6.66,3797.6,3797.3,2.63343]
[1733334419886,6.66,3797.6,3796.6,2.068806]
[1733334420231,6.66,3797.6,3796.7,0.55]
[1733334420456,6.66,3797.6,3797.5,2.63331]
[1733334420732,1.525,3797.5,3796.2,1.5804]
[1733334421237,8.22917869,3797.3,3796.7,2.63385]
[1733334421539,8.22917869,3797.4,3796.1,2.63428]
[1733334421690,8.22917869,3797.4,3794.9,2.63506]
[1733334421691,11.55917869,3797.3,3795.4,1.5341]
[1733334421899,11.55917869,3797.3,3795.5,2.63469]
[1733334422090,11.55917869,3797.3,3795.6,0.02634165]
[1733334422322,11.55917869,3797.3,3795.8,2.63449]
[1733334422535,9.61944656,3797.2,3795.4,1.5341]
[1733334422789,9.61944656,3797.2,3796.6,2.63392]
[1733334423014,8.22917869,3797.1,3797.0,2.63365]
[1733334423221,3.33,3797.3,3796.0,0.55]
[1733334423425,3.33,3797.3,3796.8,2.63379]
[1733334423934,3.33,3797.3,3796.9,2.63372]
[1733334424245,6.66,3797.3,3796.4,2.63401]
[1733334424430,6.66,3797.3,3797.2,2.63351]
[1733334424787,6.66,3797.3,3796.6,0.55]
[1733334425130,6.66,3797.3,3796.5,2.63398]
[1733334425331,14.88917869,3797.3,3796.1,2.63426]
[1733334425585,14.88917869,3797.3,3796.0,1.6412]
[1733334425586,14.88917869,3797.3,3796.0,2.63434]
[1733334425720,9.87059656,3797.2,3796.1,2.63427]
[1733334425890,8.22917869,3797.2,3795.6,5.26924]
[1733334426096,8.22917869,3797.0,3795.8,2.63449]
[1733334426324,8.22917869,3797.0,3796.0,2.63435]
[1733334426531,11.55917869,3797.0,3796.0,2.63435]
[1733334426791,3.33,3797.0,3796.9,2.63372]
[1733334427108,3.33,3797.0,3796.0,2.63435]
[1733334427109,3.33,3797.0,3796.5,2.63397]
[1733334427637,3.33,3797.0,3796.7,2.63386]
[1733334427995,3.33,3797.0,3795.8,3.0]
[1733334428192,3.33,3797.0,3795.9,6.48441]
[1733334428394,3.33,3797.0,3796.6,2.63389]
[1733334429011,6.66,3797.0,3796.7,2.63385]
[1733334429217,6.66,3797.0,3796.5,2.63399]
[1733334429439,6.66,3797.0,3796.7,2.63385]
[1733334429733,6.66,3797.0,3796.0,3.0]
[1733334429921,6.66,3797.0,3796.7,2.63384]
[1733334430572,8.22917869,3796.9,3795.5,1.6412]
[1733334430857,8.22917869,3796.7,3796.6,2.63393]
[1733334431262,11.55917869,3796.7,3796.6,2.63393]
[1733334432141,3.33,3796.7,3796.6,3.18393]
[1733334432338,3.33,3796.7,3796.6,3.76836592]
[1733334433110,3.33,3796.7,3796.6,2.63393]
[1733334433301,3.33,3796.7,3796.3,2.63413]
[1733334433430,3.33,3796.7,3795.4,2.63476]
[1733334433635,6.66,3796.7,3795.3,1.5622]
[1733334433948,8.169,3796.7,3796.1,2.63421]
[1733334434173,10.47481787,3796.7,3795.7,3.0]
[1733334434487,10.47481787,3796.7,3795.3,1.5622]
[1733334434488,8.22917869,3796.6,3795.8,2.63444]
[1733334434659,8.22917869,3796.5,3795.8,2.63444]
[1733334435231,8.22917869,3796.1,3794.7,0.26474892]
[1733334435464,8.22917869,3796.1,3795.5,2.63463]
[1733334435666,8.22917869,3796.1,3795.0,2.63501]
[1733334435868,8.22917869,3795.8,3794.7,2.63525]
[1733334436085,8.22917869,3795.7,3795.1,2.63497]
[1733334436290,0.97393787,3796.1,3794.9,2.6351]
[1733334436291,3.33,3795.8,3794.9,2.6351]
[1733334436435,1.5294,3795.6,3794.9,2.6351]
[1733334436634,1.5294,3795.6,3794.3,2.63553]
[1733334436892,9.75857869,3795.6,3795.2,2.63485]
[1733334437862,9.75857869,3795.6,3794.4,0.430043]
[1733334437863,9.75857869,3795.6,3794.9,2.63509]
[1733334438275,8.22917869,3795.5,3794.9,2.63509]
[1733334438482,3.33,3795.8,3793.2,1.574]
[1733334438483,8.22917869,3795.1,3793.2,1.574]
[1733334438692,8.22917869,3794.6,3793.0,2.63637]
[1733334438899,8.22917869,3794.3,3793.0,2.63637]
[1733334439200,8.22917869,3794.2,3793.5,2.63605]
[1733334439555,4.22655,3794.7,3793.5,2.63605]
[1733334439556,8.22917869,3794.6,3793.5,2.63605]
[1733334439901,8.22917869,3794.4,3793.5,2.63605]
[1733334440056,8.22917869,3794.4,3792.7,3.0]
[1733334440057,8.22917869,3793.9,3792.7,2.63658]
[1733334440252,8.22917869,3793.7,3793.0,2.63642]
[1733334440451,8.22917869,3793.6,3792.4,1.6085]
[1733334440654,8.22917869,3793.8,3792.8,2.6365]
[1733334440853,8.22917869,3793.6,3792.9,2.63648]
[1733334441157,8.22917869,3793.3,3792.2,2.63694]
[1733334441460,8.22917869,3793.3,3791.9,1.6085]
[1733334441692,8.22917869,3793.1,3792.7,2.63663]
[1733334441904,1.6478,3793.4,3791.9,1.6085]
[1733334442085,8.22917869,3793.5,3792.2,0.02636711]
[1733334442289,8.22917869,3793.5,3792.3,2.63692]
[1733334442533,8.22917869,3793.5,3792.4,0.263692]
[1733334442687,8.22917869,3793.5,3791.9,1.6085]
[1733334442688,8.22917869,3793.5,3792.0,2.63713]
[1733334442872,8.22917869,3793.5,3792.1,3.0]
[1733334443091,8.22917869,3793.5,3793.2,2.63623]
[1733334443485,8.22917869,3793.5,3792.1,2.63706]
[1733334443486,11.55917869,3793.5,3792.2,3.0]
[1733334443712,11.55917869,3793.5,3792.2,3.779556]
[1733334443915,3.33,3793.5,3792.3,0.55]
[1733334444224,3.33,3793.5,3792.5,0.55]
[1733334444372,3.33,3793.5,3793.3,2.63622]
[1733334444573,3.33,3793.5,3792.7,2.63661]
[1733334444888,3.33,3793.5,3793.0,2.63642]
[1733334444889,1.6211,3793.4,3793.0,2.63642]
[1733334445122,8.22917869,3793.1,3792.4,2.63679]
[1733334445335,8.22917869,3793.1,3792.5,2.63675]
[1733334445633,8.22917869,3793.3,3792.6,2.6367]
[1733334445917,1.6211,3793.4,3791.9,1.6085]
[1733334445918,3.33,3793.1,3792.7,2.63663]
[1733334446077,1.15591787,3793.0,3792.4,2.63678]
[1733334446273,1.15591787,3793.0,3792.2,2.63694]
[1733334446274,8.22917869,3792.9,3792.2,2.63694]
[1733334446477,8.22917869,3792.9,3791.7,0.16349178]
[1733334446478,8.22917869,3792.4,3791.7,0.16349178]
[1733334446725,1.6006,3792.2,3791.7,0.16349178]
[1733334446927,9.82977869,3792.2,3791.7,0.16349178]
[1733334447276,8.22917869,3792.0,3791.7,0.16349178]
[1733334447631,8.22917869,3791.9,3791.7,2.80081178]
[1733334447920,8.22917869,3792.0,3791.7,2.80081178]
[1733334448120,8.22917869,3791.9,3791.7,2.80081178]
[1733334448279,11.55917869,3792.0,3791.7,0.16349178]
[1733334448477,8.22917869,3791.9,3791.7,0.16349178]
[1733334449597,8.22917869,3791.8,3791.7,2.80082178]
[1733334450718,11.55917869,3791.8,3791.7,2.80082178]
[1733334451731,3.33,3792.0,3791.7,2.80082178]
[1733334451732,3.33,3792.0,3791.9,5.6372]
[1733334451880,0.69286,3792.0,3791.9,5.66357052]
[1733334452088,0.69286,3792.0,3791.9,5.6372]
[1733334452349,0.69286,3792.0,3791.9,2.6372]
[1733334453138,4.02286,3792.0,3791.9,2.6372]
[1733334453437,4.02286,3792.0,3791.9,4.83730518]
[1733334453636,1e-05,3792.0,3791.9,8.38730518]
[1733334454735,3.33,3793.1,3793.0,2.63643]
[1733334454949,3.33,3793.5,3793.4,2.63615]
[1733334455589,6.66,3793.5,3793.4,2.63615]
[1733334456209,2.70594,3793.5,3793.4,3.163396]
[1733334456415,0.06992,3793.5,3793.4,8.238496]
[1733334456655,0.06992,3793.5,3793.4,8.501796]
[1733334456855,0.06992,3793.5,3793.4,8.238496]
[1733334457075,3.33,3793.6,3793.5,6.18608]
[1733334457076,0.7639,3793.6,3793.5,6.18608]
[1733334457354,1.5943,3795.1,3793.6,2.63601]
[1733334457570,3.33,3795.5,3795.4,2.63476]
[1733334458114,6.66,3795.5,3795.4,2.63476]
[1733334459067,6.66,3795.5,3795.1,2.63497]
[1733334459218,6.66,3795.5,3794.4,2.63539]
[1733334459418,6.66,3795.5,3793.7,4.25294]
[1733334459419,1.6151,3795.3,3793.7,7.51741733]
[1733334459623,8.22917869,3795.2,3794.2,2.63555]
[1733334459868,8.22917869,3794.9,3794.2,2.63555]
[1733334460077,8.22917869,3795.0,3793.9,2.63575]
[1733334460277,1.6136,3795.1,3793.2,1.5323]
[1733334460278,8.22917869,3794.9,3793.2,1.5323]
[1733334460570,8.22917869,3794.6,3793.8,2.63587]
[1733334460870,8.22917869,3794.5,3793.8,2.63583]
[1733334461027,8.22917869,3794.5,3794.0,2.63571]
[1733334461225,1.6136,3794.7,3793.2,1.5323]
[1733334461226,8.22917869,3794.6,3794.5,2.63539]
[1733334461530,3.33,3795.0,3793.8,1.569]
[1733334461869,3.33,3795.0,3794.8,2.63512]
[1733334462320,3.33,3795.0,3794.9,2.63511]
[1733334462740,3.33,3795.0,3794.6,2.63525]
[1733334462951,3.33,3795.0,3794.0,0.55]
[1733334463151,3.33,3795.0,3794.9,2.63511]
[1733334463334,6.66,3795.0,3794.9,2.63511]
[1733334464162,6.66,3795.0,3794.4,1.6407]
[1733334464359,6.66,3795.0,3793.5,0.53549449]
[1733334464360,7.326,3795.0,3794.6,2.6353]
[1733334464565,7.326,3795.0,3794.1,2.63563]
[1733334464566,15.55517869,3795.0,3794.1,2.63567]
[1733334464922,8.22917869,3794.9,3794.3,2.63553]
[1733334465328,8.22917869,3794.9,3793.7,2.63588]
[1733334465628,8.22917869,3794.9,3794.0,2.63573]
[1733334465828,9.78469656,3794.8,3794.0,2.63573]
[1733334466060,9.76147869,3794.7,3793.2,0.27003303]
[1733334466369,8.22917869,3794.5,3793.4,2.63613]
[1733334466570,8.22917869,3794.4,3793.1,1.6024]
[1733334466777,8.22917869,3794.6,3793.5,2.63606]
[1733334467124,8.22917869,3794.6,3793.1,1.6024]
[1733334467125,8.22917869,3794.0,3793.1,2.63629]
[1733334467332,8.22917869,3794.0,3792.4,1.5882]
[1733334467538,8.22917869,3794.0,3792.5,0.25977524]
[1733334467679,1.6362,3794.1,3793.1,2.63636]
[1733334467680,8.22917869,3793.9,3793.1,2.63636]
[1733334468083,8.22917869,3794.0,3793.1,2.63636]
[1733334468275,4.31653787,3793.9,3793.1,2.63636]
[1733334468588,12.54571656,3793.9,3792.4,1.8489877]
[1733334468800,12.54571656,3793.9,3792.9,2.63649]
[1733334468801,11.55917869,3793.9,3792.9,2.63649]
[1733334469000,3.33,3793.9,3792.4,1.8489877]
[1733334469218,3.33,3793.9,3792.5,0.02636304]
[1733334469219,11.55917869,3793.9,3792.5,0.02636304]
[1733334469384,11.55917869,3793.9,3793.8,2.63587]
[1733334469593,11.55917869,3793.9,3792.5,0.55]
[1733334469796,11.55917869,3793.9,3793.6,2.63601]
[1733334470194,11.55917869,3793.9,3793.8,2.63587]
[1733334470389,11.55917869,3793.9,3793.3,2.63618]
[1733334470834,14.88917869,3793.9,3793.3,2.63618]
[1733334471154,6.66,3793.9,3793.8,2.63587]
[1733334471360,0.01636757,3794.4,3794.3,2.63553]
[1733334471555,0.01636757,3794.4,3794.3,4.24743]
[1733334471973,0.01636757,3794.4,3794.3,7.79743]
[1733334472174,7.57e-06,3794.4,3794.3,7.79743]
[1733334472476,4.71988,3795.0,3794.9,4.24701]
[1733334472639,4.71988,3795.0,3794.9,4.79701]
[1733334472835,4.71988,3795.0,3794.9,7.79701]
[1733334473240,8.04988,3795.0,3794.9,7.24701]
[1733334473442,8.04988,3795.0,3794.9,2.63511]
[1733334473975,8.04988,3795.0,3794.9,3.712139]
[1733334474470,5.41484,3795.0,3794.9,6.712139]
[1733334475635,6.66,3795.5,3794.9,8.273139]
[1733334475895,5.34265,3795.5,3795.4,7.74576]
[1733334476200,8.1826,3796.7,3795.7,2.63456]
[1733334476345,8.1826,3796.7,3795.7,6.672592]
[1733334477183,8.1826,3796.7,3795.7,7.422592]
[1733334477532,6.66,3796.7,3795.7,7.972592]
[1733334477736,1e-05,3795.8,3795.7,9.474692]
[1733334477966,0.69551,3795.8,3795.7,9.474692]
[1733334478165,1e-05,3795.8,3795.7,9.474692]
[1733334478334,5.34307,3796.7,3796.6,7.28083]
[1733334478533,1.39228,3796.7,3796.6,8.37333543]
[1733334479055,2.70951,3797.0,3796.9,2.63372]
[1733334479329,0.07585,3797.0,3796.9,7.83062]
[1733334480086,0.07585,3797.0,3796.9,5.63372]
[1733334480445,0.07585,3797.0,3796.9,6.18372]
[1733334480446,3.40585,3797.0,3796.9,6.18372]
[1733334480646,4.02654,3797.3,3797.2,2.63351]
[1733334480890,4.02654,3797.3,3797.2,7.83041]
[1733334481102,1.612,3799.0,3797.5,5.63331]
[1733334481300,4.02676,3797.6,3797.5,6.18331]
[1733334481593,1.612,3799.5,3799.0,2.63226]
[1733334481760,1.612,3799.5,3797.8,2.63303]
[1733334481761,9.84117869,3800.0,3799.2,2.63208]
[1733334482178,9.84117869,3800.0,3799.3,2.63203]
[1733334482352,9.84117869,3800.0,3799.6,2.63183]
[1733334482353,8.22917869,3800.0,3799.6,2.63183]
[1733334482658,1.09558504,3800.6,3800.4,2.63129]
[1733334482852,3.19017756,3800.8,3800.4,2.63129]
[1733334482853,2.64238504,3800.8,3800.4,2.63129]
[1733334483112,1.5468,3800.8,3800.3,2.63136]
[1733334483290,1.5468,3800.8,3799.7,0.55]
[1733334483459,1.5468,3800.8,3800.0,2.63157]
[1733334483816,0.15468,3800.7,3800.0,2.63157]
[1733334484119,2.60558504,3801.2,3800.1,0.0263132]
[1733334484257,1.09558504,3801.3,3800.4,2.63126]
[1733334484458,1.09558504,3801.5,3800.5,0.02630794]
[1733334484672,2.60558504,3801.6,3800.6,3.0]
[1733334484866,1.93489626,3801.6,3800.6,4.5079]
[1733334485070,1.93489626,3801.6,3800.4,3.0]
[1733334485304,1.93489626,3801.6,3800.1,4.5079]
[1733334485305,3.0304813,3801.6,3800.1,7.1394]
[1733334485517,3.0304813,3801.6,3799.7,1.5079]
[1733334485518,1.5339,3800.7,3799.7,1.5079]
[1733334485874,1.5339,3800.7,3799.7,3.0]
[1733334486213,0.48639,3800.6,3799.3,1.5802]
[1733334486425,0.48639,3800.6,3799.5,2.63192]
[1733334486781,0.48639,3800.6,3799.3,1.5802]
[1733334487345,3.33,3800.8,3799.1,0.52325091]
[1733334487346,3.33,3800.8,3799.7,4.5802]
[1733334487626,3.33,3800.8,3800.6,2.63115]
[1733334488087,3.33,3800.8,3800.7,3.0]
[1733334489584,3.33,3800.8,3800.4,2.63129]
[1733334489936,3.33,3800.8,3799.9,3.0]
[1733334490143,0.333,3800.7,3799.6,1.5802]
[1733334490429,6.66,3800.8,3799.7,2.63178]
[1733334490632,6.66,3800.8,3800.6,2.63114]
[1733334490787,6.66,3800.8,3799.6,1.5802]
[1733334491196,6.66,3800.8,3800.1,2.6315]
[1733334491402,6.66,3800.8,3799.6,4.60651053]
[1733334491644,6.66,3800.8,3800.6,4.21135]
[1733334491813,6.66,3800.8,3800.6,1.5802]
[1733334492135,6.66,3800.8,3800.6,4.21135]
[1733334492487,3.33,3800.7,3800.6,7.21135]
[1733334493241,3.33,3800.7,3800.3,2.63136]
[1733334493401,3.33,3800.7,3800.5,2.6312]
[1733334493730,3.33,3800.7,3800.6,3.0]
[1733334494504,3.33,3800.7,3800.2,4.14918]
[1733334494705,3.33,3800.7,3799.0,2.93226]
[1733334494706,0.999,3800.6,3799.7,1.5874]
[1733334495488,3.33,3800.7,3799.7,1.5874]
[1733334495691,3.33,3800.7,3799.7,4.21913]
[1733334496017,3.33,3800.7,3799.9,2.63158]
[1733334496326,3.33,3800.7,3799.7,3.0]
[1733334496537,3.33,3800.7,3799.6,0.02631145]
[1733334496538,3.33,3800.7,3800.6,2.63116]
[1733334496698,3.33,3800.7,3800.4,2.63126]
[1733334497088,3.33,3800.7,3800.1,4.6186]
[1733334497089,3.33,3800.7,3800.5,2.63119]
[1733334497287,3.33,3800.7,3800.6,5.63116]
[1733334497594,3.33,3800.6,3800.5,2.63123]
[1733334497928,3.33,3800.6,3800.5,5.63123]
[1733334498290,3.33,3800.6,3800.0,0.52691269]
[1733334498526,4.995,3800.6,3800.0,0.52691269]
[1733334498835,3.33,3800.6,3799.9,2.6316]
[1733334499037,3.323899,3800.6,3799.7,0.53738569]
[1733334499388,3.323899,3800.6,3799.3,1.5369]
[1733334499619,4.2358,3800.4,3798.9,2.63229]
[1733334499834,8.79,3800.3,3798.8,1.5369]
[1733334500040,8.79,3800.1,3798.7,0.80235782]
[1733334500246,8.79,3800.1,3798.4,1.5369]
[1733334500392,11.4218,3799.7,3798.1,2.63286]
[1733334500592,1.6449,3799.6,3797.3,2.6334]
[1733334500792,1.6449,3799.0,3796.9,0.02632438]
[1733334500991,1.6449,3798.6,3796.8,1.6292]
[1733334501532,1.6449,3798.6,3797.1,2.63352]
[1733334501734,8.79,3798.5,3796.5,0.80333699]
[1733334501919,11.42283,3798.2,3796.7,2.63386]
[1733334502105,1.5185,3798.1,3796.7,2.63386]
[1733334502286,1.294133,3798.0,3796.3,1.5837]
[1733334502488,8.79,3797.9,3797.3,2.63343]
[1733334502692,3.33,3798.6,3797.4,2.63337]
[1733334502998,1.5277,3798.5,3797.4,2.63338]
[1733334503192,1.5277,3798.5,3797.3,1.5013]
[1733334503193,3.33,3798.6,3797.3,1.5013]
[1733334503392,3.33,3798.6,3798.5,2.63261]
[1733334503593,3.33,3798.6,3798.2,2.63277]
[1733334503793,3.33,3798.6,3798.4,2.63268]
[1733334504041,3.33,3798.6,3798.0,3.0]
[1733334504221,3.33,3798.6,3797.8,3.53297727]
[1733334504532,3.33,3798.6,3798.4,3.0]
[1733334504769,3.33,3798.6,3797.9,3.0]
[1733334505071,3.33,3798.6,3798.5,6.18261]
[1733334505267,6.66,3798.6,3798.5,3.0]
[1733334505470,6.66,3798.6,3798.3,2.63275]
[1733334505671,6.66,3798.6,3798.3,2.63273]
[1733334505830,6.66,3798.6,3797.9,2.63296]
[1733334506174,1.5277,3798.5,3796.9,4.135]
[1733334506327,1.5277,3798.5,3796.5,4.65305804]
[1733334506528,8.79,3798.4,3797.1,2.63357]
[1733334506729,1.5277,3798.3,3796.4,0.78259175]
[1733334506929,8.79,3798.0,3796.1,2.63422]
[1733334507137,8.79,3797.8,3796.2,0.413552]
[1733334507349,8.79,3797.8,3796.7,2.63381]
[1733334507630,8.79,3797.7,3796.0,1.76491571]
[1733334507830,1.5277,3797.6,3796.3,2.63409]
[1733334508039,10.3177,3797.3,3795.7,0.75]
[1733334508225,10.3177,3797.3,3795.8,2.63449]
[1733334508226,1.5277,3797.1,3795.8,2.63449]
[1733334508445,1.03177,3797.0,3795.7,0.75]
[1733334508633,1.5277,3797.1,3795.8,0.02634149]
[1733334508831,1.5277,3797.1,3795.7,0.75]
[1733334509054,1.5277,3797.1,3796.6,2.63391]
[1733334509459,1.5277,3797.1,3796.3,2.63407]
[1733334509730,1.5277,3797.1,3796.4,5.63406]
[1733334509952,4.8577,3797.1,3796.5,0.02633742]
[1733334510158,3.33,3797.1,3797.0,2.63365]
[1733334510478,3.33,3797.1,3796.5,3.0]
[1733334510632,3.33,3797.1,3795.8,3.525448]
[1733334510834,3.33,3797.1,3796.1,2.63427]
[1733334511077,3.33,3797.1,3796.6,2.63391]
[1733334511231,3.33,3797.1,3795.8,2.63449]
[1733334511433,3.33,3797.1,3797.0,2.63365]
[1733334511972,3.33,3797.1,3797.0,5.63365]
[1733334512193,3.33,3797.1,3797.0,6.18365]
[1733334512391,3.33,3797.8,3797.7,2.63317]
[1733334512540,3.33,3797.8,3797.7,6.18317]
[1733334512871,3.33,3797.8,3797.7,7.70807]
[1733334512872,2.01345,3797.8,3797.7,7.70807]
[1733334513077,6.66,3798.6,3798.5,5.63261]
[1733334513740,6.66,3798.6,3798.5,6.18261]
[1733334513935,6.66,3798.6,3798.5,7.064149]
[1733334514135,1e-05,3798.6,3798.5,8.655349]
[1733334514376,8.253499,3800.6,3798.8,3.55]
[1733334514577,17.043499,3800.6,3798.9,2.63234]
[1733334514878,9.983899,3800.6,3800.4,2.63126]
[1733334515176,9.983899,3800.6,3800.5,3.0]
[1733334515748,9.983899,3800.6,3800.1,2.63148]
[1733334515965,9.983899,3800.6,3800.4,2.63125]
[1733334516353,9.983899,3800.6,3799.2,4.5647]
[1733334516688,11.86607535,3800.6,3800.0,3.0]
[1733334516873,11.86607535,3800.6,3799.5,3.0]
[1733334517078,15.19607535,3800.6,3799.3,0.5142851]
[1733334517292,15.19607535,3800.6,3799.6,2.63185]
[1733334517471,15.19607535,3800.6,3799.3,3.0]
[1733334517472,10.3144,3800.5,3799.3,3.0]
[1733334517678,13.313899,3800.6,3799.8,3.0]
[1733334517903,13.313899,3800.6,3800.5,5.63123]
[1733334518768,13.313899,3800.6,3800.4,2.63129]
[1733334519508,13.313899,3800.6,3800.0,3.0]
[1733334519661,16.643899,3800.6,3800.4,2.63127]
[1733334520603,16.643899,3800.6,3800.5,3.0]
[1733334521102,11.381639,3800.6,3800.5,3.55]
[1733334521272,3.33,3800.7,3800.6,6.18116]
[1733334521471,9.43994601,3800.8,3800.7,3.55]
[1733334521658,5.89801777,3800.8,3800.7,16.45073]
[1733334521863,3.98484093,3800.8,3800.7,18.24149643]
[1733334522058,0.73756093,3800.8,3800.7,18.44149643]
[1733334522526,3.33,3801.6,3800.7,18.44149643]
[1733334522527,2.27586214,3801.6,3801.5,6.28054]
[1733334522718,1.5572,3803.8,3803.4,2.62921]
[1733334523007,1.5572,3803.8,3803.5,2.62914]
[1733334523202,1.5572,3803.8,3802.9,5.62954]
[1733334523203,1.5572,3804.8,3803.6,0.02628796]
[1733334523378,1.5572,3804.8,3803.0,0.02628584]
[1733334523613,1.5572,3804.8,3803.2,3.0]
[1733334523808,1.5572,3804.8,3804.0,3.0]
[1733334524012,1.5514,3806.2,3804.3,3.0]
[1733334524307,8.79,3806.1,3804.8,2.62824]
[1733334524515,3.33,3804.8,3804.7,5.62832]
[1733334525043,3.33,3804.8,3804.7,7.68062]
[1733334525197,8.79,3806.9,3805.8,2.62754]
[1733334525403,8.79,3806.9,3805.5,3.0]
[1733334525404,1.5514,3807.0,3805.5,3.0]
[1733334525606,1.5514,3807.0,3805.0,2.62812]
[1733334525607,1.5514,3807.0,3805.9,3.0]
[1733334525997,1.5514,3807.0,3805.3,3.0]
[1733334526336,1.5855,3807.5,3805.8,3.0]
[1733334526631,1.5855,3807.5,3806.1,2.62733]
[1733334526848,3.4909075,3806.8,3805.9,0.02626417]
[1733334527147,3.4909075,3806.8,3805.9,2.62748]
[1733334527373,3.4909075,3806.8,3805.5,0.0262669]
[1733334527666,3.4909075,3806.8,3806.3,3.0]
[1733334527966,3.4909075,3806.8,3805.9,3.0]
[1733334528172,3.4909075,3806.8,3805.9,0.02626757]
[1733334528401,3.4909075,3806.8,3806.7,3.0]
[1733334528921,3.4909075,3806.8,3806.2,0.27038525]
[1733334529117,3.4909075,3806.8,3805.8,3.0]
[1733334529118,3.4909075,3806.8,3806.1,0.52384083]
[1733334529362,6.8209075,3806.8,3806.7,3.0]
[1733334529750,6.8209075,3806.8,3806.4,3.0]
[1733334530133,6.8209075,3806.8,3806.2,3.0]
[1733334530463,6.8209075,3806.8,3806.1,3.15119083]
[1733334530464,6.8209075,3806.8,3806.7,3.0]
[1733334531220,6.8209075,3806.8,3805.9,0.26780418]
[1733334531472,6.8209075,3806.8,3806.1,3.0]
[1733334531622,10.1509075,3806.8,3805.9,2.86870068]
[1733334531825,10.1509075,3806.8,3806.0,0.02626688]
[1733334532069,10.1509075,3806.8,3806.4,3.0]
[1733334532232,1.531,3806.7,3805.7,0.26570594]
[1733334532438,0.55,3806.6,3805.1,2.628]
[1733334532759,0.55,3806.4,3804.6,0.0262727]
[1733334532922,0.55,3806.4,3804.5,1.88195906]
[1733334532923,0.55,3806.4,3804.9,2.62818]
[1733334533130,0.55,3806.4,3804.8,2.62824]
[1733334533349,0.55,3806.4,3804.5,2.14613842]